[Event "*** SCC Grand Prix: Titled Tuesday Blitz"]
[Site "Chess.com"]
[Date "2020.06.23"]
[Round "2"]
[White "dpruess"]
[Black "FM_VS99"]
[Result "1-0"]
[WhiteElo "2479"]
[BlackElo "2298"]
[TimeControl "180+1"]
[EndTime "10:17:02 PDT"]
[Termination "dpruess won by resignation"]

1. e4 {[%clk 0:03:00.9]} 1... g6 {[%clk 0:02:58.2]} 2. d4 {[%clk 0:03:00.6]}
2... Bg7 {[%clk 0:02:59.1]} 3. Nc3 {[%clk 0:03:00.7]} 3... d6 {[%clk 0:02:59.5]}
4. f4 {[%clk 0:02:57.8]} 4... a6 {[%clk 0:02:56]} 5. Nf3 {[%clk 0:02:52.3]} 5...
b5 {[%clk 0:02:55.5]} 6. Bd3 {[%clk 0:02:38.1]} 6... Nd7 {[%clk 0:02:54.1]} 7.
O-O {[%clk 0:02:03]} 7... c5 {[%clk 0:02:51.6]} 8. Be3 {[%clk 0:01:41.1]} 8...
Bb7 {[%clk 0:02:33.7]} 9. e5 {[%clk 0:01:27.1]} 9... cxd4 {[%clk 0:02:28.7]} 10.
Bxd4 {[%clk 0:01:24.1]} 10... Nh6 {[%clk 0:02:08]} 11. Be4 {[%clk 0:01:10.5]}
11... Bxe4 {[%clk 0:01:56.3]} 12. Nxe4 {[%clk 0:01:11.4]} 12... O-O {[%clk
0:01:56.5]} 13. exd6 {[%clk 0:00:43.9]} 13... Nf5 {[%clk 0:01:16.2]} 14. Bxg7
{[%clk 0:00:36.4]} 14... Kxg7 {[%clk 0:01:17.1]} 15. dxe7 {[%clk 0:00:29.2]}
15... Qxe7 {[%clk 0:01:17]} 16. Re1 {[%clk 0:00:28.7]} 16... Rad8 {[%clk
0:01:02.5]} 17. Qd2 {[%clk 0:00:27.4]} 17... Nc5 {[%clk 0:00:50.7]} 18. Qc3+
{[%clk 0:00:26.8]} 18... f6 {[%clk 0:00:41.2]} 19. Nxc5 {[%clk 0:00:26]} 1-0

[Event "*** SCC Grand Prix: Titled Tuesday Blitz"]
[Site "Chess.com"]
[Date "2020.06.23"]
[Round "2"]
[White "Aygehovit1992"]
[Black "Karacsonyi_Gellert"]
[Result "0-1"]
[WhiteElo "2687"]
[BlackElo "2484"]
[TimeControl "180+1"]
[EndTime "10:17:03 PDT"]
[Termination "Karacsonyi_Gellert won by resignation"]

1. e4 {[%clk 0:03:00.9]} 1... c5 {[%clk 0:02:59.2]} 2. Nf3 {[%clk 0:02:59.3]}
2... Nc6 {[%clk 0:02:59.3]} 3. Bb5 {[%clk 0:02:58.8]} 3... g6 {[%clk 0:02:59.3]}
4. Bxc6 {[%clk 0:02:58.7]} 4... dxc6 {[%clk 0:02:59.2]} 5. d3 {[%clk 0:02:58.5]}
5... Bg7 {[%clk 0:02:58.7]} 6. h3 {[%clk 0:02:59]} 6... Nf6 {[%clk 0:02:58.9]}
7. Nc3 {[%clk 0:02:59.2]} 7... Nd7 {[%clk 0:02:59.4]} 8. Be3 {[%clk 0:02:59.2]}
8... e5 {[%clk 0:02:59.9]} 9. Qd2 {[%clk 0:02:59.4]} 9... Qe7 {[%clk 0:03:00.4]}
10. Bh6 {[%clk 0:02:56]} 10... f6 {[%clk 0:03:00.8]} 11. O-O-O {[%clk
0:02:52.9]} 11... Nf8 {[%clk 0:03:00.7]} 12. Bxg7 {[%clk 0:02:50.9]} 12... Qxg7
{[%clk 0:03:01.6]} 13. Nh2 {[%clk 0:02:47.7]} 13... Ne6 {[%clk 0:03:02.1]} 14.
g3 {[%clk 0:02:43]} 14... b5 {[%clk 0:03:02.2]} 15. f4 {[%clk 0:02:42.4]} 15...
O-O {[%clk 0:03:00.9]} 16. h4 {[%clk 0:02:34]} 16... Nd4 {[%clk 0:03:00.7]} 17.
Ne2 {[%clk 0:02:30.9]} 17... Be6 {[%clk 0:02:54.5]} 18. Kb1 {[%clk 0:02:28.3]}
18... Qf7 {[%clk 0:02:50.9]} 19. Nc1 {[%clk 0:02:16.4]} 19... b4 {[%clk
0:02:47.1]} 20. h5 {[%clk 0:02:16.7]} 20... a5 {[%clk 0:02:44.8]} 21. hxg6
{[%clk 0:02:16.4]} 21... hxg6 {[%clk 0:02:44.8]} 22. Rdf1 {[%clk 0:01:45.2]}
22... Qg7 {[%clk 0:02:40.3]} 23. c3 {[%clk 0:01:38.7]} 23... bxc3 {[%clk
0:02:39.8]} 24. bxc3 {[%clk 0:01:39.6]} 24... Rab8+ {[%clk 0:02:36.8]} 25. Ka1
{[%clk 0:01:39.7]} 25... Nb5 {[%clk 0:02:26]} 26. f5 {[%clk 0:01:38.8]} 26...
Na3 {[%clk 0:02:22.8]} 27. Ne2 {[%clk 0:01:38.3]} 27... gxf5 {[%clk 0:02:11.7]}
28. exf5 {[%clk 0:01:33.8]} 28... Bd5 {[%clk 0:01:58.9]} 29. Nf3 {[%clk
0:01:09]} 29... Rb7 {[%clk 0:01:48]} 30. c4 {[%clk 0:01:03.8]} 30... Bxf3 {[%clk
0:01:35]} 31. Rxf3 {[%clk 0:01:04.7]} 31... Rfb8 {[%clk 0:01:34.8]} 32. Nc3
{[%clk 0:01:04.7]} 32... Qh6 {[%clk 0:01:28.9]} 33. Qc1 {[%clk 0:00:29.6]} 33...
Qxh1 {[%clk 0:01:20.9]} 0-1

[Event "*** SCC Grand Prix: Titled Tuesday Blitz"]
[Site "Chess.com"]
[Date "2020.06.23"]
[Round "2"]
[White "albano87"]
[Black "Timerkhanov"]
[Result "1-0"]
[WhiteElo "2342"]
[BlackElo "2617"]
[TimeControl "180+1"]
[EndTime "10:17:10 PDT"]
[Termination "albano87 won by resignation"]

1. e4 {[%clk 0:02:56.8]} 1... c5 {[%clk 0:02:59.1]} 2. Nf3 {[%clk 0:02:54.6]}
2... d6 {[%clk 0:02:59.2]} 3. d4 {[%clk 0:02:52.5]} 3... cxd4 {[%clk 0:03:00.1]}
4. Qxd4 {[%clk 0:02:50]} 4... Nc6 {[%clk 0:02:58.9]} 5. Bb5 {[%clk 0:02:49.5]}
5... Bd7 {[%clk 0:02:59.1]} 6. Bxc6 {[%clk 0:02:50.4]} 6... Bxc6 {[%clk
0:03:00]} 7. Nc3 {[%clk 0:02:41.8]} 7... Nf6 {[%clk 0:02:59.4]} 8. Bg5 {[%clk
0:02:38.3]} 8... e6 {[%clk 0:02:59]} 9. Qd3 {[%clk 0:02:37]} 9... Be7 {[%clk
0:02:57.8]} 10. Nd4 {[%clk 0:02:36]} 10... Rc8 {[%clk 0:02:54.5]} 11. O-O-O
{[%clk 0:02:35.5]} 11... Qa5 {[%clk 0:02:53.3]} 12. f4 {[%clk 0:02:28.8]} 12...
O-O {[%clk 0:02:51.1]} 13. Kb1 {[%clk 0:02:25.9]} 13... a6 {[%clk 0:02:48.6]}
14. f5 {[%clk 0:02:16.2]} 14... e5 {[%clk 0:02:42.8]} 15. Nb3 {[%clk 0:02:10.8]}
15... Qc7 {[%clk 0:02:35.2]} 16. Bxf6 {[%clk 0:02:09.9]} 16... Bxf6 {[%clk
0:02:35.2]} 17. Qxd6 {[%clk 0:02:06.2]} 17... Qxd6 {[%clk 0:02:00.7]} 18. Rxd6
{[%clk 0:02:07.1]} 18... Be7 {[%clk 0:01:59.7]} 19. Rd3 {[%clk 0:02:02.4]} 19...
g6 {[%clk 0:01:54.5]} 20. g4 {[%clk 0:01:59.6]} 20... Rfd8 {[%clk 0:01:48.3]}
21. Rhd1 {[%clk 0:01:58.5]} 21... Rxd3 {[%clk 0:01:46.5]} 22. Rxd3 {[%clk
0:01:54.2]} 22... Kg7 {[%clk 0:01:46.5]} 23. Na5 {[%clk 0:01:50.7]} 23... Bg5
{[%clk 0:01:38.1]} 24. Nxc6 {[%clk 0:01:45.3]} 24... Rxc6 {[%clk 0:01:39]} 25.
b3 {[%clk 0:01:41.9]} 25... gxf5 {[%clk 0:01:35.4]} 26. exf5 {[%clk 0:01:38.4]}
26... Bf4 {[%clk 0:01:29]} 27. h4 {[%clk 0:01:35]} 27... Rh6 {[%clk 0:01:25.6]}
28. h5 {[%clk 0:01:29.9]} 28... Rc6 {[%clk 0:01:24.3]} 29. Ne4 {[%clk 0:01:27]}
29... Rc7 {[%clk 0:01:14.1]} 30. c4 {[%clk 0:01:22]} 30... h6 {[%clk 0:01:12.7]}
31. Kc2 {[%clk 0:01:18.9]} 31... Kf8 {[%clk 0:01:09.3]} 32. f6 {[%clk
0:01:13.7]} 32... Ke8 {[%clk 0:01:09.3]} 33. Nd6+ {[%clk 0:01:08.9]} 33... Kf8
{[%clk 0:01:03.9]} 34. Nxb7 {[%clk 0:01:08.3]} 34... Rc8 {[%clk 0:00:53.5]} 35.
Nd6 {[%clk 0:01:04.6]} 35... Rd8 {[%clk 0:00:52.4]} 36. c5 {[%clk 0:00:59.7]}
36... Bg5 {[%clk 0:00:51.1]} 37. c6 {[%clk 0:00:56.4]} 1-0

[Event "*** SCC Grand Prix: Titled Tuesday Blitz"]
[Site "Chess.com"]
[Date "2020.06.23"]
[Round "2"]
[White "Rskaak"]
[Black "Ural_bogatyr"]
[Result "0-1"]
[WhiteElo "1692"]
[BlackElo "2351"]
[TimeControl "180+1"]
[EndTime "10:17:10 PDT"]
[Termination "Ural_bogatyr won by resignation"]

1. d4 {[%clk 0:03:00.9]} 1... Nf6 {[%clk 0:02:58.6]} 2. Nf3 {[%clk 0:03:00.3]}
2... d5 {[%clk 0:02:58]} 3. Bg5 {[%clk 0:02:58.3]} 3... e6 {[%clk 0:02:54.3]} 4.
Nbd2 {[%clk 0:02:54.8]} 4... c6 {[%clk 0:02:53.3]} 5. e3 {[%clk 0:02:54.1]} 5...
Nbd7 {[%clk 0:02:52.8]} 6. c4 {[%clk 0:02:52.8]} 6... h6 {[%clk 0:02:52]} 7. Bh4
{[%clk 0:02:52]} 7... g5 {[%clk 0:02:37.2]} 8. Bg3 {[%clk 0:02:51.2]} 8... Ne4
{[%clk 0:02:37.2]} 9. Bd3 {[%clk 0:02:43.6]} 9... f5 {[%clk 0:02:35.7]} 10. Be5
{[%clk 0:02:36.6]} 10... Nxe5 {[%clk 0:02:33.7]} 11. Nxe5 {[%clk 0:02:37.5]}
11... g4 {[%clk 0:02:29.7]} 12. f3 {[%clk 0:02:33.9]} 12... Qh4+ {[%clk
0:02:22.5]} 13. g3 {[%clk 0:02:24.5]} 13... Nxg3 {[%clk 0:02:21.8]} 14. Ng6
{[%clk 0:02:06.1]} 14... Qh3 {[%clk 0:02:16.8]} 15. Nf4 {[%clk 0:01:38.9]} 15...
Qh4 {[%clk 0:02:15.6]} 16. Ng6 {[%clk 0:01:37.9]} 16... Qg5 {[%clk 0:02:07.2]}
17. Nf4 {[%clk 0:01:29.7]} 17... Nxh1 {[%clk 0:02:03.2]} 18. Qe2 {[%clk
0:01:25.5]} 18... Qh4+ {[%clk 0:01:57.8]} 19. Kd1 {[%clk 0:01:19.2]} 19... Nf2+
{[%clk 0:01:56]} 20. Kc2 {[%clk 0:01:19]} 20... Nxd3 {[%clk 0:01:55.5]} 21. Qxd3
{[%clk 0:01:17.4]} 21... Qf6 {[%clk 0:01:51.6]} 22. fxg4 {[%clk 0:01:04.8]}
22... Bd6 {[%clk 0:01:50.2]} 23. gxf5 {[%clk 0:00:54.8]} 23... Bxf4 {[%clk
0:01:47.7]} 24. exf4 {[%clk 0:00:52.5]} 24... Qxf5 {[%clk 0:01:47.6]} 25. Qxf5
{[%clk 0:00:50.2]} 25... exf5 {[%clk 0:01:48.5]} 26. Re1+ {[%clk 0:00:50.1]}
26... Kf7 {[%clk 0:01:47.2]} 27. c5 {[%clk 0:00:47.3]} 27... Re8 {[%clk
0:01:43.8]} 28. Rg1 {[%clk 0:00:41.9]} 28... Be6 {[%clk 0:01:43.8]} 29. Nf3
{[%clk 0:00:40.8]} 29... Rg8 {[%clk 0:01:42.7]} 30. Ne5+ {[%clk 0:00:39.8]}
30... Kf6 {[%clk 0:01:42.8]} 31. Rh1 {[%clk 0:00:36.3]} 31... Rg2+ {[%clk
0:01:41.9]} 32. Kc3 {[%clk 0:00:30.4]} 32... Rag8 {[%clk 0:01:42.8]} 33. h4
{[%clk 0:00:25.4]} 33... a5 {[%clk 0:01:42.3]} 34. a4 {[%clk 0:00:24.7]} 34...
R8g3+ {[%clk 0:01:40.8]} 35. Nd3 {[%clk 0:00:22.6]} 35... Rf3 {[%clk 0:01:40.3]}
36. Re1 {[%clk 0:00:20.4]} 36... Bf7 {[%clk 0:01:38.6]} 37. b4 {[%clk
0:00:17.4]} 37... axb4+ {[%clk 0:01:37]} 0-1

[Event "*** SCC Grand Prix: Titled Tuesday Blitz"]
[Site "Chess.com"]
[Date "2020.06.23"]
[Round "2"]
[White "Firegrizzly"]
[Black "GM_dmitrij"]
[Result "1/2-1/2"]
[WhiteElo "2577"]
[BlackElo "2902"]
[TimeControl "180+1"]
[EndTime "10:17:16 PDT"]
[Termination "Game drawn by repetition"]

1. e4 {[%clk 0:03:00.9]} 1... e5 {[%clk 0:03:00]} 2. Nf3 {[%clk 0:02:59.5]} 2...
Nc6 {[%clk 0:03:00.4]} 3. d4 {[%clk 0:03:00]} 3... exd4 {[%clk 0:03:00.5]} 4.
Nxd4 {[%clk 0:03:00.9]} 4... Nf6 {[%clk 0:03:01]} 5. Nxc6 {[%clk 0:03:00.2]}
5... bxc6 {[%clk 0:03:01]} 6. Bd3 {[%clk 0:03:00.7]} 6... d5 {[%clk 0:03:00.6]}
7. exd5 {[%clk 0:03:00.7]} 7... cxd5 {[%clk 0:03:01.5]} 8. O-O {[%clk
0:03:00.9]} 8... Be7 {[%clk 0:03:00]} 9. c4 {[%clk 0:03:00.5]} 9... O-O {[%clk
0:02:51.3]} 10. Nc3 {[%clk 0:02:56]} 10... d4 {[%clk 0:02:44.9]} 11. Ne4 {[%clk
0:02:54.7]} 11... Bb7 {[%clk 0:02:44.7]} 12. Re1 {[%clk 0:02:40.3]} 12... Nxe4
{[%clk 0:02:19]} 13. Bxe4 {[%clk 0:02:38.5]} 13... Bxe4 {[%clk 0:02:19.9]} 14.
Rxe4 {[%clk 0:02:38.7]} 14... Bf6 {[%clk 0:02:20.8]} 15. Bf4 {[%clk 0:02:34.9]}
15... Qd7 {[%clk 0:02:13.1]} 16. Qd3 {[%clk 0:02:30.8]} 16... c5 {[%clk
0:02:09.6]} 17. Rae1 {[%clk 0:02:29.7]} 17... Rfe8 {[%clk 0:01:59.6]} 18. b3
{[%clk 0:02:29.7]} 18... a5 {[%clk 0:01:49.7]} 19. a4 {[%clk 0:02:19.8]} 19...
h5 {[%clk 0:01:37.6]} 20. h3 {[%clk 0:02:17]} 20... g6 {[%clk 0:01:35.1]} 21.
Kf1 {[%clk 0:02:10.6]} 21... Kg7 {[%clk 0:01:32.7]} 22. Rxe8 {[%clk 0:02:05.5]}
22... Rxe8 {[%clk 0:01:33.6]} 23. Rxe8 {[%clk 0:02:05.4]} 23... Qxe8 {[%clk
0:01:34.5]} 24. Bd2 {[%clk 0:02:04.4]} 24... Qd8 {[%clk 0:01:31]} 25. Ke2 {[%clk
0:01:58.8]} 25... Qb6 {[%clk 0:01:28.2]} 26. Kd1 {[%clk 0:01:56.8]} 26... Qc6
{[%clk 0:01:15.5]} 27. f3 {[%clk 0:01:48.2]} 27... Bd8 {[%clk 0:01:14.7]} 28.
Qe4 {[%clk 0:01:43.5]} 28... Qxe4 {[%clk 0:00:48.9]} 29. fxe4 {[%clk 0:01:42.9]}
29... Kf6 {[%clk 0:00:49.2]} 30. Bf4 {[%clk 0:01:40.6]} 30... Ke6 {[%clk
0:00:45.7]} 31. Ke2 {[%clk 0:01:40.3]} 31... f5 {[%clk 0:00:39.5]} 32. Kd3
{[%clk 0:01:38]} 32... g5 {[%clk 0:00:33.6]} 33. exf5+ {[%clk 0:01:37.7]} 33...
Kxf5 {[%clk 0:00:33.3]} 34. Bd6 {[%clk 0:01:37.6]} 34... Bb6 {[%clk 0:00:33.9]}
35. Bb8 {[%clk 0:01:34.3]} 35... g4 {[%clk 0:00:29]} 36. Bd6 {[%clk 0:01:29.3]}
36... gxh3 {[%clk 0:00:25.7]} 37. gxh3 {[%clk 0:01:30.2]} 37... Kg5 {[%clk
0:00:26.3]} 38. Bg3 {[%clk 0:01:24.6]} 38... Kf5 {[%clk 0:00:26.8]} 39. Bd6
{[%clk 0:01:23.8]} 39... Kg5 {[%clk 0:00:26.2]} 40. Bg3 {[%clk 0:01:23.2]} 40...
Kf5 {[%clk 0:00:26.6]} 41. Bd6 {[%clk 0:01:22.2]} 1/2-1/2

[Event "*** SCC Grand Prix: Titled Tuesday Blitz"]
[Site "Chess.com"]
[Date "2020.06.23"]
[Round "2"]
[White "Omk124"]
[Black "m-garcett"]
[Result "1-0"]
[WhiteElo "2386"]
[BlackElo "2055"]
[TimeControl "180+1"]
[EndTime "10:17:20 PDT"]
[Termination "Omk124 won on time"]

1. e4 {[%clk 0:03:00.9]} 1... c5 {[%clk 0:02:59.4]} 2. Nf3 {[%clk 0:03:01.2]}
2... d6 {[%clk 0:02:59.5]} 3. d4 {[%clk 0:03:01.7]} 3... cxd4 {[%clk 0:03:00.4]}
4. Nxd4 {[%clk 0:03:02.4]} 4... Nf6 {[%clk 0:03:00.4]} 5. Nc3 {[%clk 0:03:03.1]}
5... a6 {[%clk 0:03:00.9]} 6. Bc4 {[%clk 0:03:03.3]} 6... e6 {[%clk 0:02:59.9]}
7. Bb3 {[%clk 0:03:03.4]} 7... Nbd7 {[%clk 0:02:58.2]} 8. f4 {[%clk 0:03:03.3]}
8... Nc5 {[%clk 0:02:57.1]} 9. f5 {[%clk 0:03:02.9]} 9... Nxb3 {[%clk
0:02:54.7]} 10. axb3 {[%clk 0:03:01.7]} 10... Be7 {[%clk 0:02:50.2]} 11. O-O
{[%clk 0:03:01.4]} 11... O-O {[%clk 0:02:49.8]} 12. Be3 {[%clk 0:02:57]} 12...
e5 {[%clk 0:02:36.8]} 13. Nde2 {[%clk 0:02:55.3]} 13... Bd7 {[%clk 0:02:34.9]}
14. Ng3 {[%clk 0:02:53.7]} 14... Bc6 {[%clk 0:02:35]} 15. Bg5 {[%clk 0:02:52.3]}
15... Rc8 {[%clk 0:02:18.3]} 16. Bxf6 {[%clk 0:02:38.6]} 16... Bxf6 {[%clk
0:02:19.2]} 17. Qd3 {[%clk 0:02:38.8]} 17... Qb6+ {[%clk 0:01:53.1]} 18. Kh1
{[%clk 0:02:37.6]} 18... Qd4 {[%clk 0:01:47.3]} 19. Qe2 {[%clk 0:02:27.5]} 19...
Rfd8 {[%clk 0:01:38.1]} 20. Rad1 {[%clk 0:02:27.2]} 20... Qb6 {[%clk 0:01:37]}
21. Nh5 {[%clk 0:02:27.7]} 21... Bg5 {[%clk 0:01:25.7]} 22. Qg4 {[%clk
0:01:59.5]} 22... f6 {[%clk 0:01:17.6]} 23. h4 {[%clk 0:01:56.5]} 23... Bh6
{[%clk 0:00:31.5]} 24. Nxf6+ {[%clk 0:01:55.5]} 24... Kh8 {[%clk 0:00:31.6]} 25.
Nfd5 {[%clk 0:01:55.5]} 25... Bxd5 {[%clk 0:00:28.9]} 26. Nxd5 {[%clk
0:01:55.3]} 26... Qb5 {[%clk 0:00:17.8]} 27. Nc3 {[%clk 0:01:53.2]} 27... Rxc3
{[%clk 0:00:13.8]} 28. bxc3 {[%clk 0:01:52.3]} 28... Qc5 {[%clk 0:00:13.6]} 29.
Qf3 {[%clk 0:01:50.2]} 29... Bf4 {[%clk 0:00:10.8]} 30. Rd5 {[%clk 0:01:50.1]}
30... Qc7 {[%clk 0:00:10.1]} 31. Rfd1 {[%clk 0:01:49.7]} 31... Qe7 {[%clk
0:00:09.2]} 32. g3 {[%clk 0:01:48.9]} 32... Bh6 {[%clk 0:00:09.1]} 33. c4 {[%clk
0:01:47.9]} 33... g6 {[%clk 0:00:08.8]} 34. f6 {[%clk 0:01:46.9]} 34... Qf7
{[%clk 0:00:08.2]} 35. c5 {[%clk 0:01:46.7]} 35... Rf8 {[%clk 0:00:04.8]} 36.
Rxd6 {[%clk 0:01:46.8]} 36... Bg7 {[%clk 0:00:03.8]} 37. Kg2 {[%clk 0:01:44.6]}
37... Bxf6 {[%clk 0:00:02.7]} 38. Rf1 {[%clk 0:01:44.6]} 38... Kg7 {[%clk
0:00:01.5]} 39. c6 {[%clk 0:01:41.9]} 1-0

[Event "*** SCC Grand Prix: Titled Tuesday Blitz"]
[Site "Chess.com"]
[Date "2020.06.23"]
[Round "2"]
[White "David_Paravyan"]
[Black "blitzking1729"]
[Result "1-0"]
[WhiteElo "2927"]
[BlackElo "2584"]
[TimeControl "180+1"]
[EndTime "10:17:22 PDT"]
[Termination "David_Paravyan won by resignation"]

1. e4 {[%clk 0:03:00.9]} 1... c6 {[%clk 0:02:59.8]} 2. d4 {[%clk 0:02:56.8]}
2... d5 {[%clk 0:02:59.8]} 3. e5 {[%clk 0:02:57.4]} 3... Bf5 {[%clk 0:02:59.3]}
4. c4 {[%clk 0:02:57.4]} 4... e6 {[%clk 0:02:58.2]} 5. Nc3 {[%clk 0:02:57.9]}
5... Ne7 {[%clk 0:02:54.7]} 6. Nf3 {[%clk 0:02:58.1]} 6... Nd7 {[%clk 0:02:50]}
7. Nh4 {[%clk 0:02:58.5]} 7... Bg6 {[%clk 0:02:44.6]} 8. cxd5 {[%clk 0:02:56.2]}
8... Nxd5 {[%clk 0:02:43.6]} 9. Nxg6 {[%clk 0:02:56.4]} 9... hxg6 {[%clk
0:02:44.1]} 10. Bd3 {[%clk 0:02:48.2]} 10... Qb6 {[%clk 0:02:40.5]} 11. Nxd5
{[%clk 0:02:29.9]} 11... cxd5 {[%clk 0:02:38.1]} 12. Be3 {[%clk 0:02:30.4]}
12... Bb4+ {[%clk 0:02:35.7]} 13. Kf1 {[%clk 0:02:29.9]} 13... O-O {[%clk
0:02:34.3]} 14. h4 {[%clk 0:02:26.5]} 14... f6 {[%clk 0:02:28.8]} 15. h5 {[%clk
0:02:05.2]} 15... g5 {[%clk 0:02:27.5]} 16. h6 {[%clk 0:02:05]} 16... g6 {[%clk
0:02:15.6]} 17. Qg4 {[%clk 0:01:42.3]} 17... Kh7 {[%clk 0:01:57]} 18. exf6
{[%clk 0:01:42.3]} 18... Nxf6 {[%clk 0:01:52.1]} 19. Bxg6+ {[%clk 0:01:27.1]}
19... Kh8 {[%clk 0:01:30.4]} 20. Qxg5 {[%clk 0:01:28]} 20... Bd6 {[%clk
0:01:24.8]} 21. b3 {[%clk 0:00:58.5]} 21... Qc7 {[%clk 0:01:13.8]} 22. Rh3
{[%clk 0:00:55.7]} 22... Qe7 {[%clk 0:00:56.6]} 23. Rf3 {[%clk 0:00:53]} 23...
Nd7 {[%clk 0:00:40.6]} 24. Qxe7 {[%clk 0:00:50.7]} 24... Bxe7 {[%clk 0:00:40.7]}
25. Rxf8+ {[%clk 0:00:46.4]} 25... Nxf8 {[%clk 0:00:39.3]} 26. Bd3 {[%clk
0:00:46.7]} 26... Ba3 {[%clk 0:00:35.6]} 27. g4 {[%clk 0:00:46]} 27... Rc8
{[%clk 0:00:33.8]} 28. g5 {[%clk 0:00:45.2]} 1-0

[Event "*** SCC Grand Prix: Titled Tuesday Blitz"]
[Site "Chess.com"]
[Date "2020.06.23"]
[Round "2"]
[White "Chernov_Mikhail"]
[Black "MuhittinBuker"]
[Result "1-0"]
[WhiteElo "2359"]
[BlackElo "1904"]
[TimeControl "180+1"]
[EndTime "10:17:22 PDT"]
[Termination "Chernov_Mikhail won by resignation"]

1. e4 {[%clk 0:03:00.9]} 1... e5 {[%clk 0:02:59.1]} 2. Nf3 {[%clk 0:02:58.2]}
2... Nc6 {[%clk 0:02:58.4]} 3. Bc4 {[%clk 0:02:58.7]} 3... Nf6 {[%clk 0:02:57]}
4. Ng5 {[%clk 0:02:58.5]} 4... d5 {[%clk 0:02:55.6]} 5. exd5 {[%clk 0:02:59.4]}
5... Na5 {[%clk 0:02:54.7]} 6. Bb5+ {[%clk 0:02:53.5]} 6... c6 {[%clk
0:02:53.8]} 7. dxc6 {[%clk 0:02:54.4]} 7... bxc6 {[%clk 0:02:52.9]} 8. Be2
{[%clk 0:02:55.3]} 8... h6 {[%clk 0:02:51.2]} 9. Nh3 {[%clk 0:02:55.8]} 9... Bc5
{[%clk 0:02:38.2]} 10. d3 {[%clk 0:02:55.4]} 10... O-O {[%clk 0:02:33.9]} 11.
Nc3 {[%clk 0:02:55.3]} 11... Re8 {[%clk 0:02:26.6]} 12. O-O {[%clk 0:02:53.4]}
12... Bb6 {[%clk 0:02:24.5]} 13. Kh1 {[%clk 0:02:52.6]} 13... c5 {[%clk
0:02:19.9]} 14. f4 {[%clk 0:02:37.2]} 14... e4 {[%clk 0:02:16.4]} 15. dxe4
{[%clk 0:02:31.4]} 15... Qxd1 {[%clk 0:02:11.1]} 16. Rxd1 {[%clk 0:02:25.2]}
16... Bxh3 {[%clk 0:02:09.5]} 17. gxh3 {[%clk 0:02:24.9]} 17... Nxe4 {[%clk
0:02:07.1]} 18. Nxe4 {[%clk 0:02:25.8]} 18... Rxe4 {[%clk 0:02:03.6]} 19. Bf3
{[%clk 0:02:26.3]} 19... Rae8 {[%clk 0:02:02.2]} 20. Bxe4 {[%clk 0:02:26.4]}
20... Rxe4 {[%clk 0:02:00.2]} 21. Bd2 {[%clk 0:02:12.6]} 21... Nc4 {[%clk
0:01:58.4]} 22. b3 {[%clk 0:02:08.5]} 22... Nxd2 {[%clk 0:01:56.4]} 23. Rxd2
{[%clk 0:02:09.4]} 23... Rxf4 {[%clk 0:01:55.3]} 24. Kg2 {[%clk 0:02:06.4]}
24... c4 {[%clk 0:01:51.5]} 25. Rf1 {[%clk 0:02:03.3]} 25... Re4 {[%clk
0:01:46.1]} 26. Rf3 {[%clk 0:01:17.8]} 26... g6 {[%clk 0:01:34.5]} 27. Kf1
{[%clk 0:01:07.4]} 27... Kg7 {[%clk 0:01:25.3]} 28. Rd7 {[%clk 0:01:04.1]} 28...
g5 {[%clk 0:01:17.1]} 29. Rdxf7+ {[%clk 0:00:59.7]} 29... Kg6 {[%clk 0:01:15.8]}
30. R3f6+ {[%clk 0:00:49]} 30... Kh5 {[%clk 0:01:14.4]} 31. Rh7 {[%clk
0:00:49.9]} 31... Rf4+ {[%clk 0:01:07.4]} 32. Rxf4 {[%clk 0:00:49.4]} 32... gxf4
{[%clk 0:01:07.1]} 33. bxc4 {[%clk 0:00:49.7]} 33... Kg5 {[%clk 0:01:05.7]} 34.
Kg2 {[%clk 0:00:47.4]} 1-0

[Event "*** SCC Grand Prix: Titled Tuesday Blitz"]
[Site "Chess.com"]
[Date "2020.06.23"]
[Round "2"]
[White "MathiasWomacka"]
[Black "Resignify"]
[Result "1-0"]
[WhiteElo "2406"]
[BlackElo "2150"]
[TimeControl "180+1"]
[EndTime "10:17:23 PDT"]
[Termination "MathiasWomacka won by resignation"]

1. e4 {[%clk 0:03:00.9]} 1... d6 {[%clk 0:02:59.6]} 2. d4 {[%clk 0:03:00.6]}
2... Nf6 {[%clk 0:02:59.3]} 3. Nc3 {[%clk 0:03:00.6]} 3... g6 {[%clk 0:02:58.2]}
4. f4 {[%clk 0:03:00.7]} 4... Bg7 {[%clk 0:02:57.6]} 5. Nf3 {[%clk 0:03:00.7]}
5... O-O {[%clk 0:02:57.3]} 6. e5 {[%clk 0:02:59.5]} 6... dxe5 {[%clk
0:02:55.5]} 7. fxe5 {[%clk 0:03:00.4]} 7... Nd5 {[%clk 0:02:55.1]} 8. Bc4 {[%clk
0:02:59.2]} 8... Nxc3 {[%clk 0:02:44.8]} 9. bxc3 {[%clk 0:03:00.1]} 9... c5
{[%clk 0:02:34]} 10. Ng5 {[%clk 0:02:53]} 10... e6 {[%clk 0:02:20.9]} 11. O-O
{[%clk 0:02:47.7]} 11... Nc6 {[%clk 0:02:18.9]} 12. Be3 {[%clk 0:02:45.7]} 12...
Bh6 {[%clk 0:02:04.7]} 13. Qd2 {[%clk 0:02:39]} 13... cxd4 {[%clk 0:02:01.4]}
14. cxd4 {[%clk 0:02:39.9]} 14... Nxd4 {[%clk 0:01:56]} 15. Rad1 {[%clk
0:02:19.6]} 15... Nc6 {[%clk 0:01:50.2]} 16. Qf2 {[%clk 0:02:18.4]} 16... Qc7
{[%clk 0:01:25.4]} 17. Nxh7 {[%clk 0:02:00]} 17... Bxe3 {[%clk 0:01:08.7]} 18.
Nf6+ {[%clk 0:01:59]} 18... Kg7 {[%clk 0:01:09.1]} 19. Qxe3 {[%clk 0:01:59.1]}
19... Qxe5 {[%clk 0:01:05.8]} 20. Qf2 {[%clk 0:01:41.5]} 20... b6 {[%clk
0:00:34]} 21. Nd7 {[%clk 0:01:28.3]} 21... Bxd7 {[%clk 0:00:25.5]} 22. Rxd7
{[%clk 0:01:29.2]} 22... Qc5 {[%clk 0:00:16.9]} 23. Bxe6 {[%clk 0:01:27.7]}
23... Qxf2+ {[%clk 0:00:15.2]} 24. Rxf2 {[%clk 0:01:28.6]} 24... Ne5 {[%clk
0:00:15]} 25. Rc7 {[%clk 0:01:25.6]} 25... Rae8 {[%clk 0:00:12.3]} 26. Bb3
{[%clk 0:01:25.2]} 26... Ng4 {[%clk 0:00:09.1]} 27. Rfxf7+ {[%clk 0:01:24.5]}
27... Rxf7 {[%clk 0:00:09.5]} 28. Rxf7+ {[%clk 0:01:24.4]} 28... Kh6 {[%clk
0:00:10.1]} 29. g3 {[%clk 0:01:23.4]} 29... Re1+ {[%clk 0:00:08]} 30. Kg2 {[%clk
0:01:23.7]} 30... Re2+ {[%clk 0:00:07.6]} 31. Kf3 {[%clk 0:01:22.1]} 31... Ne5+
{[%clk 0:00:05.6]} 32. Kxe2 {[%clk 0:01:21.7]} 1-0